Workbook

Sheet Plan1
A1: Programas de Pós Graduação | C1: Unid. SIPAC | E1: DESPESAS
D2: Valor | E2: Material de Consumo - 339030 | G2: Passagens - 339033 | I2: Diárias - 339014 | K2: Outros serv. de terc. PF - 339036 | L2: Tributos PF - 339047 | M2: Outros serv. de terc. PJ - 339039 | O2: Auxílio ao Pesquisador - 339020 | P2: Auxílio a Estudantes - 339018
B3: PROAP PPGs (R$) | D3: PROAP + PNPD
A4: CCEN | E4: PROAP | F4: PNPD | G4: PROAP | H4: PNPD | I4: PROAP | J4: PNPD | K4: PROAP | L4: PROAP | M4: PROAP | N4: PNPD | O4: PNPD | P4: PROAP
A5: DESENVOLVIMENTO E MEIO AMBIENTE - PRODEMA | B5: 44275 | C5: 11.01.14.50 | D5: =SUM(E5:P5) -> R$ 42,742.52 | E5: 3,000.00 | F5: 0.00 | G5: 4,000.00 | H5: 0.00 | I5: 15,642.52 | J5: 1,061.00 | K5: 0.00 | L5: 0.00 | M5: 0.00 | N5: 0.00 | O5: 1,039.00 | P5: 18,000.00 | Q5: =SUM(E5:P5) -> 42,742.52
A6: MODELOS DE DECISÃO E SAÚDE | B6: 42927.5 | C6: 11.01.14.54 | D6: =SUM(E6:P6) -> R$ 48,328.76 | P6: 48,328.76 | Q6: =SUM(E6:P6) -> 48,328.76
A7: MATEMÁTICA | B7: 13750 | C7: 11.01.14.53 | D7: R$ 15,850.00 | E7: 1,575.00 | F7: 0.00 | G7: 3,437.50 | H7: 0.00 | I7: 3,437.50 | J7: 0.00 | K7: 0.00 | L7: 0.00 | M7: 1,787.50 | N7: 0.00 | O7: 2,100.00 | P7: 3,512.50 | Q7: 15,850.00
A8: BIOLOGIA CELULAR E MOLECULAR | B8: 14500 | C8: 11.01.14.48 | D8: R$ 18,767.20 | E8: 998.60 | F8: 248.00 | G8: 4,820.82 | H8: 170.50 | I8: 4,820.82 | J8: 186.00 | K8: 172.17 | L8: 34.43 | M8: 2,066.06 | N8: 263.50 | O8: 682.00 | P8: 4,304.30 | Q8: 18,767.20
A9: MATEMÁTICA - UFPB-J.P. - UFCG | B9: 17850 | C9: 11.01.14.47 | D9: R$ 20,450.00 | E9: 2,000.00 | F9: 0.00 | G9: 4,000.00 | H9: 0.00 | I9: 5,850.00 | J9: 0.00 | K9: 0.00 | L9: 0.00 | M9: 4,000.00 | N9: 0.00 | O9: 2,600.00 | P9: 2,000.00 | Q9: 20,450.00
A10: GEOGRAFIA | B10: 36162.5 | C10: 11.01.14.52 | D10: R$ 51,191.25 | E10: 2,777.69 | F10: 528.00 | G10: 13,409.55 | H10: 363.00 | I10: 13,409.55 | J10: 396.00 | K10: 478.91 | L10: 95.78 | M10: 5,746.95 | N10: 561.00 | O10: 1,452.00 | P10: 11,972.82 | Q10: 51,191.25
A11: CIÊNCIAS BIOLÓGICAS (ZOOLOGIA) | B11: 55584.63 | C11: 11.01.14.49 | D11: R$ 58,184.63 | E11: 0.00 | F11: 0.00 | G11: 5,834.63 | H11: 0.00 | I11: 15,000.00 | J11: 0.00 | K11: 0.00 | L11: 0.00 | M11: 12,000.00 | N11: 0.00 | O11: 2,600.00 | P11: 22,750.00 | Q11: 58,184.63
A12: FÍSICA | B12: 55103.44 | C12: 11.01.14.51 | D12: R$ 62,903.44 | E12: 2,803.44 | F12: 2,400.00 | G12: 13,800.00 | H12: 0.00 | I12: 8,200.00 | J12: 0.00 | K12: 2,500.00 | L12: 500.00 | M12: 16,100.00 | N12: 0.00 | O12: 5,400.00 | P12: 11,200.00 | Q12: 62,903.44
A13: QUÍMICA | B13: 96731.72 | C13: 11.01.14.55 | D13: R$ 112,331.72 | E13: 3,772.55 | F13: 4,740.00 | G13: 19,346.34 | I13: 14,509.76 | K13: 0.00 | L13: 0.00 | M13: 29,019.52 | N13: 5,890.00 | O13: 4,970.00 | P13: 30,083.55 | Q13: 112,331.72
A14: TOTAL | D14: =SUM(D5:D13) -> R$ 430,749.52 | E14: =SUM(E5:F13) -> 24,843.28 | G14: 69,182.34 | I14: 82,513.15 | K14: 3,151.08 | L14: 630.21 | M14: 77,434.53 | O14: 20,843.00 | P14: =SUM(P5:P13) -> 152,151.93 | Q14: 430,749.52
Q15: 0.00
A16: CCHSA - BANANEIRA | Q16: 0.00
A17: CIÊNCIAS AGRÁRIAS (AGROECOLOGIA) | B17: 8752.33 | C17: 11.01.38.06 | D17: =SUM(E17:P17) -> R$ 12,145.20 | E17: 1,000.00 | F17: 550.00 | G17: 1,000.00 | H17: 0.00 | I17: 1,500.00 | J17: 1,000.00 | K17: 0.00 | L17: 0.00 | M17: 0.00 | N17: 0.00 | O17: 0.00 | P17: 7,095.20 | Q17: 12,145.20
A18: TECNOLOGIA AGROALIMENTAR | B18: 11000 | C18: 11.01.38.07 | D18: =SUM(E18:P18) -> R$ 12,550.00 | E18: 1,000.00 | F18: 0.00 | G18: 2,000.00 | H18: 0.00 | I18: 2,000.00 | J18: 0.00 | K18: 0.00 | L18: 0.00 | M18: 0.00 | N18: 0.00 | O18: 1,550.00 | P18: 6,000.00 | Q18: 12,550.00
A19: TOTAL | D19: =SUM(D17:D18) -> R$ 24,695.20 | E19: 2,550.00 | G19: 3,000.00 | I19: 4,500.00 | K19: 0.00 | L19: 0.00 | M19: 0.00 | O19: 1,550.00 | P19: 13,095.20 | Q19: 24,695.20
Q20: 0.00
A21: CCA - AREIA | Q21: 0.00
A22: CIÊNCIA ANIMAL | B22: 9240 | C22: 11.01.23.08 | D22: =SUM(E22:P22) -> R$ 13,688.50 | E22: 672.13 | F22: 336.00 | G22: 3,244.78 | H22: 231.00 | I22: 3,244.78 | J22: 252.00 | K22: 115.89 | L22: 23.18 | M22: 1,390.62 | N22: 357.00 | O22: 924.00 | P22: 2,897.12 | Q22: 13,688.50
A23: BIODIVERSIDADE | B23: 6250 | C23: 11.01.36.10 | D23: =SUM(E23:P23) -> R$ 7,800.00 | E23: 362.50 | F23: 248.00 | G23: 1,750.00 | H23: 170.50 | I23: 1,750.00 | J23: 186.00 | K23: 62.50 | L23: 12.50 | M23: 750.00 | N23: 263.50 | O23: 682.00 | P23: 1,562.50 | Q23: 7,800.00
A24: ZOOTECNIA | B24: 20020 | C24: 11.01.36.08 | D24: R$ 30,718.62 | E24: 2,918.62 | F24: 4,800.00 | G24: 4,500.00 | H24: 0.00 | I24: 5,000.00 | J24: 0.00 | K24: 0.00 | L24: 0.00 | M24: 0.00 | N24: 0.00 | O24: 1,500.00 | P24: 12,000.00 | Q24: 30,718.62
A25: CIÊNCIA DO SOLO | B25: 32340 | C25: 11.01.36.06 | D25: R$ 41,065.50 | E25: 0.00 | F25: 0.00 | G25: 0.00 | H25: 0.00 | I25: 10,000.00 | J25: 0.00 | K25: 0.00 | L25: 0.00 | M25: 0.00 | N25: 0.00 | O25: 6,300.00 | P25: 24,765.50 | Q25: 41,065.50
A26: AGRONOMIA | B26: =SUM(D26:P26) -> R$ 243,439.30 | C26: 11.01.36.05 | D26: R$ 121,719.65 | E26: 6,607.34 | F26: 1,248.00 | G26: 31,897.50 | H26: 858.00 | I26: 31,897.50 | J26: 936.00 | K26: 1,139.19 | L26: 227.84 | M26: 13,670.36 | N26: 1,326.00 | O26: 3,432.00 | P26: 28,479.92 | Q26: 121,719.65
A27: TOTAL | D27: =SUM(D22:D26) -> R$ 214,992.27 | E27: 17,192.59 | G27: 42,651.78 | I27: 53,266.28 | K27: =SUM(K22:K26) -> 1,317.58 | L27: 263.52 | M27: 17,757.48 | O27: 12,838.00 | P27: 69,705.04 | Q27: 214,992.27
Q28: 0.00
A29: CAMPUS IV | Q29: 0.00
A30: ECOLOGIA E MONITORAMENTO AMBIENTAL | B30: 6250 | C30: 11.01.35.07 | D30: R$ 7,800.00 | E30: 0.00 | F30: 0.00 | G30: 0.00 | H30: 0.00 | I30: 3,250.00 | J30: 0.00 | K30: 0.00 | L30: 0.00 | M30: 0.00 | N30: 0.00 | O30: 1,550.00 | P30: 3,000.00 | Q30: 7,800.00
A31: TOTAL | D31: R$ 7,800.00 | E31: 0.00 | G31: 0.00 | I31: 3,250.00 | K31: 0.00 | L31: 0.00 | M31: 0.00 | O31: 1,550.00 | P31: 3,000.00 | Q31: 7,800.00
Q32: 0.00
A33: CAMPUS I | Q33: 0.00
A34: ADMINISTRAÇÃO | B34: 41937.69 | C34: 11.01.13.35 | D34: =SUM(E34:P34) -> R$ 38,159.68 | E34: 1,095.29 | F34: 0.00 | G34: 11,683.10 | H34: 1,010.00 | I34: 8,762.32 | J34: 640.00 | K34: 0.00 | L34: 0.00 | M34: 7,301.94 | N34: 0.00 | O34: 0.00 | P34: 7,667.03 | Q34: 38,159.68
A35: ANTROPOLOGIA | B35: 10120 | C35: 11.01.35.05 | D35: =SUM(E35:P35) -> R$ 13,420.00 | E35: 586.96 | F35: 528.00 | G35: 2,833.60 | H35: 363.00 | I35: 2,833.60 | J35: 396.00 | K35: 101.20 | L35: 20.24 | M35: 1,214.40 | N35: 561.00 | O35: 1,452.00 | P35: 2,530.00 | Q35: 13,420.00
A36: ARQUITETURA E URBANISMO | B36: 17600 | C36: 11.01.17.34 | D36: R$ 22,663.43 | E36: 1,363.43 | F36: 0.00 | G36: 7,000.00 | H36: 0.00 | I36: 5,000.00 | J36: 1,300.00 | K36: 0.00 | L36: 0.00 | M36: 6,000.00 | N36: 2,000.00 | O36: 0.00 | P36: 0.00 | Q36: 22,663.43
A37: ARTES VISUAIS (UFPB J.P. - UFPE) | B37: 6250 | C37: 11.01.54.20 | D37: R$ 7,450.00 | E37: 0.00 | G37: 4,000.00 | I37: 2,250.00 | K37: 0.00 | L37: 0.00 | M37: 0.00 | O37: 1,200.00 | P37: 0.00 | Q37: 7,450.00
A38: BIOTECNOLOGIA | B38: 6250 | C38: 11.01.44.05 | D38: R$ 6,250.00 | E38: 3,250.00 | G38: 2,000.00 | I38: 1,000.00 | Q38: 6,250.00
A39: CIÊNCIA DA INFORMAÇÃO | B39: 30800 | C39: 11.01.13.37 | D39: R$ 44,983.12 | E39: 2,417.62 | F39: 528.00 | G39: 11,671.27 | H39: 363.00 | I39: 11,671.27 | J39: 396.00 | K39: 416.84 | L39: 83.36 | M39: 5,001.98 | N39: 561.00 | O39: 1,452.00 | P39: 10,420.78 | Q39: 44,983.12
A40: CIÊNCIA E ENGENHARIA DE MATERIAIS | B40: 32147.5 | C40: 11.01.17.35 | D40: R$ 54,300.40 | E40: 5,430.04 | G40: 0.00 | I40: 10,860.08 | K40: 0.00 | L40: 0.00 | M40: 27,150.20 | P40: 10,860.08 | Q40: 54,300.40
A41: CIÊNCIA E TECNOLOGIA DE ALIMENTOS | B41: 40392.92 | C41: 11.01.17.36 | D41: R$ 53,658.06 | E41: 0.00 | G41: 12,000.00 | I41: 12,458.06 | J41: 1,000.00 | K41: 0.00 | L41: 0.00 | M41: 0.00 | O41: 3,200.00 | P41: 25,000.00 | Q41: 53,658.06
A42: CIÊNCIA POLÍTICA E RELAÇÕES INTERNACIONAIS | B42: 5000 | C42: 11.00.53.03 | D42: R$ 6,385.50 | G42: 3,000.00 | I42: 3,385.50 | Q42: 6,385.50
A43: CIÊNCIAS CONTÁBEIS | B43: 14025 | C43: 11.00.52.03 | D43: R$ 16,875.26 | G43: 5,062.58 | I43: 5,062.58 | M43: 3,375.05 | P43: 3,375.05 | Q43: 16,875.26
A44: CIÊNCIAS DA NUTRIÇÃO | B44: 25217.5 | C44: 11.01.37.15 | D44: R$ 37,865.69 | G44: 6,500.69 | I44: 5,175.00 | O44: 2,100.00 | P44: 24,090.00 | Q44: 37,865.69
A45: CIÊNCIAS DAS RELIGIÕES | B45: 23283.33 | C45: 11.00.56.04 | D45: R$ 28,699.68 | E45: 1,500.00 | G45: 10,000.00 | H45: 1,650.00 | I45: 10,249.68 | K45: 500.00 | L45: 100.00 | M45: 1,500.00 | P45: 3,200.00 | Q45: 28,699.68
A46: CIÊNCIAS JURÍDICAS | B46: 44257.98 | C46: 11.01.46.04 | D46: R$ 49,925.56 | E46: 4,551.12 | G46: 15,000.00 | H46: 800.00 | I46: 13,000.00 | J46: 850.00 | K46: 5,000.00 | L46: 1,000.00 | M46: 5,000.00 | P46: 4,724.44 | Q46: 49,925.56
A47: COMPUTAÇÃO, COMUNICAÇÃO E ARTES | B47: 5000 | C47: 11.00.64.17 | D47: R$ 5,000.00 | E47: 0.00 | G47: 2,000.00 | I47: 3,000.00 | K47: 0.00 | L47: 0.00 | M47: 0.00 | P47: 0.00 | Q47: 5,000.00
A48: COMUNICAÇÃO E CULTURAS MIDIÁTICAS | B48: 11500 | C48: 11.01.15.66 | D48: R$ 11,825.00 | E48: 3,000.00 | G48: 3,000.00 | I48: 1,000.00 | K48: 834.00 | L48: 166.00 | M48: 825.00 | P48: 3,000.00 | Q48: 11,825.00
A49: DIREITOS HUMANOS, CIDAD. E POLÍTICAS PÚBLICAS | B49: 13420 | C49: 11.01.15.16 | D49: R$ 17,318.12 | E49: 908.75 | F49: 264.00 | G49: 4,387.07 | H49: 181.50 | I49: 4,387.08 | J49: 198.00 | K49: 156.68 | L49: 31.34 | M49: 1,880.17 | N49: 280.50 | O49: 726.00 | P49: 3,917.03 | Q49: 17,318.12
A50: ECONOMIA | B50: 28703.27 | C50: 11.01.13.38 | D50: R$ 34,181.80 | E50: 2,600.00 | G50: 9,000.00 | I50: 8,000.00 | K50: 0.00 | L50: 0.00 | M50: 6,881.80 | P50: 7,700.00 | Q50: 34,181.80
A51: EDUCAÇÃO | B51: 90612.5 | C51: 11.01.18.31 | D51: R$ 101,393.87 | E51: 5,785.14 | F51: 264.00 | G51: 27,928.28 | H51: 181.50 | I51: 27,928.28 | J51: 198.00 | K51: 997.44 | L51: 199.49 | M51: 11,969.27 | N51: 280.50 | O51: 726.00 | P51: 24,935.97 | Q51: 101,393.87
A52: EDUCAÇÃO FÍSICA | B52: 27527.5 | C52: 11.01.37.11 | D52: R$ 32,903.06 | E52: 2,463.85 | G52: 9,212.86 | I52: 6,580.61 | K52: 1,100.00 | L52: 220.00 | M52: 8,225.77 | P52: 5,099.97 | Q52: 32,903.06
A53: ENERGIAS RENOVÁVEIS | B53: 12628 | C53: 11.01.48.07 | D53: R$ 15,456.20 | E53: 1,390.62 | G53: 4,171.86 | I53: 4,171.86 | K53: 0.00 | L53: 0.00 | M53: 1,390.62 | O53: 1,550.00 | P53: 2,781.24 | Q53: 15,456.20
A54: ENFERMAGEM | B54: 60060 | C54: 11.01.37.14 | D54: R$ 84,483.27 | E54: 3,964.17 | G54: 19,820.82 | H54: 1,600.00 | I54: 19,820.82 | J54: 1,600.00 | K54: 0.00 | L54: 0.00 | M54: 11,892.48 | N54: 2,000.00 | P54: 23,784.98 | Q54: 84,483.27
A55: ENGENHARIA CIVIL E AMBIENTAL | B55: 47355 | C55: 11.01.17.33 | D55: R$ 52,437.96 | E55: 10,500.00 | G55: 20,937.96 | I55: 10,500.00 | K55: 0.00 | L55: 0.00 | M55: 0.00 | P55: 10,500.00 | Q55: 52,437.96
A56: ENGENHARIA DE PRODUÇÃO | B56: 19712 | C56: 11.01.17.37 | D56: R$ 23,839.20 | E56: 1,382.67 | G56: 6,674.98 | I56: 6,674.98 | K56: 238.39 | L56: 47.68 | M56: 2,860.70 | P56: 5,959.80 | Q56: 23,839.20
A57: ENGENHARIA ELÉTRICA | B57: 14476 | C57: 11.00.65.01 | D57: R$ 17,576.00 | E57: 1,676.00 | F57: 1,200.00 | G57: 6,400.00 | I57: 1,500.00 | M57: 4,000.00 | N57: 1,500.00 | O57: 400.00 | P57: 900.00 | Q57: 17,576.00
A58: ENGENHARIA MECÂNICA | B58: 78155 | C58: 11.01.17.39 | D58: R$ 78,422.41 | E58: 10,000.00 | G58: 20,000.00 | I58: 10,000.00 | K58: 0.00 | L58: 0.00 | M58: 10,422.41 | P58: 28,000.00 | Q58: 78,422.41
A59: ENGENHARIA QUÍMICA | B59: 5544 | C59: 11.00.55.01 | D59: R$ 6,594.40 | P59: 6,594.40 | Q59: 6,594.40
A60: FILOSOFIA | B60: 15840 | C60: 11.01.15.67 | D60: R$ 17,991.50 | E60: 1,679.15 | F60: 1,200.00 | G60: 11,754.05 | I60: 3,358.30 | Q60: 17,991.50
A61: FONOAUDIOLOGIA | C61: 11.00.54.14 | D61: R$ 5,000.00 | I61: 5,000.00 | Q61: 5,000.00
A62: GESTÃO PÚBLICA E COOP. INTERNACIONAL | B62: 5000 | C62: 11.00.52.04 | D62: R$ 9,460.00 | G62: 3,000.00 | I62: 3,000.00 | M62: 2,000.00 | P62: 1,460.00 | Q62: 9,460.00
A63: HISTÓRIA | B63: 14300 | C63: 11.01.15.68 | D63: R$ 15,500.00 | E63: 200.00 | G63: 2,575.00 | H63: 600.00 | I63: 3,860.00 | J63: 600.00 | K63: 1,900.00 | L63: 475.00 | M63: 1,000.00 | P63: 4,290.00 | Q63: 15,500.00
A64: INFORMÁTICA | B64: 37576 | C64: 11.01.45.03 | D64: R$ 50,192.27 | E64: 0.00 | G64: 18,092.27 | H64: 1,100.00 | I64: 16,000.00 | J64: 1,000.00 | K64: 0.00 | L64: 0.00 | M64: 8,000.00 | P64: 6,000.00 | Q64: 50,192.27
A65: LETRAS | B65: 60912.5 | C65: 11.01.15.69 | D65: R$ 62,562.50 | E65: 1,091.70 | G65: 22,146.56 | H65: 1,000.00 | I65: 21,228.00 | J65: 650.00 | P65: 16,446.24 | Q65: 62,562.50
A66: MODELAGEM MATEMÁTICA E COMPUTACIONAL | B66: 11396 | C66: 11.01.45.04 | D66: R$ 12,946.00 | E66: 0.00 | G66: 5,396.00 | I66: 6,000.00 | K66: 0.00 | L66: 0.00 | M66: 0.00 | O66: 1,550.00 | P66: 0.00 | Q66: 12,946.00
A67: MÚSICA | B67: 25987.5 | C67: 11.01.54.21 | D67: R$ 25,987.50 | E67: 1,598.70 | G67: 6,496.75 | I67: 5,197.40 | K67: 1,559.25 | L67: 389.80 | M67: 1,949.00 | P67: 8,796.60 | Q67: 25,987.50
A68: NEUROCIÊNCIA COGNITIVA E COMPORTAMENTO | B68: 10560 | C68: 11.01.15.62 | D68: R$ 14,657.50 | E68: 0.00 | G68: 1,800.00 | I68: 3,700.00 | M68: 4,500.00 | O68: 1,650.00 | P68: 3,007.50 | Q68: 14,657.50
A69: ODONTOLOGIA | B69: 19404 | C69: 11.01.37.16 | D69: R$ 25,721.50 | E69: 3,000.00 | G69: 6,000.00 | I69: 4,000.00 | O69: 4,200.00 | P69: 8,521.50 | Q69: 25,721.50
A70: PSICOLOGIA SOCIAL | B70: 61703.56 | C70: 11.01.15.64 | D70: R$ 63,803.56 | E70: 5,003.56 | G70: 22,350.00 | I70: 22,350.00 | K70: 0.00 | L70: 0.00 | M70: 0.00 | O70: 2,100.00 | P70: 12,000.00 | Q70: =SUM(E70:P70) -> 63,803.56
A71: SERVIÇO SOCIAL | B71: 14300 | C71: 11.01.15.72 | D71: R$ 15,500.00 | G71: 6,500.00 | H71: 1,000.00 | I71: 6,000.00 | J71: 200.00 | P71: 1,800.00 | Q71: 15,500.00
A72: SOCIOLOGIA | B72: 38362.5 | C72: 11.01.15.73 | D72: R$ 47,495.93 | G72: 17,678.37 | H72: 1,650.00 | I72: 17,678.37 | J72: 1,650.00 | P72: 8,839.19 | Q72: 47,495.93
Q73: 0.00
A74: TOTAL | D74: =SUM(D34:D73) -> R$ 1,228,885.93 | E74: =SUM(E34:F73) -> 80,422.77 | G74: =SUM(G34:H73) -> 359,573.07 | I74: =SUM(I34:J73) -> 323,321.79 | K74: =SUM(K34:K73) -> 12,803.80 | L74: =SUM(L34:L73) -> 2,732.91 | M74: =SUM(M34:N73) -> 141,523.79 | O74: =SUM(O34:O73) -> 22,306.00 | P74: =SUM(P34:P73) -> 286,201.80 | Q74: 1,228,885.93
A75: TOTAIS PROAP + PNPD POR ELEMENTO | D75: =D14+D19+D27+D31+D74 -> R$ 1,907,122.92 | E75: =SUM(E14+E19+E27+E31+E74) -> R$ 125,008.64 | G75: =G14+G19+G27+G31+G74 -> R$ 474,407.19 | I75: =SUM(I14+I19+I27+I31+I74) -> R$ 466,851.22 | K75: =K14+K19+K27+K31+K74 -> R$ 17,272.46 | L75: =L14+L19+L27+L31+L74 -> R$ 3,626.64 | M75: =M14+M19+M27+M31+M74 -> R$ 236,715.80 | O75: =O14+O19+O27+O31+O74 -> 59,087.00 | P75: =P14+P19+P27+P31+P74 -> R$ 524,153.97

Sheet Plan2

Sheet Plan3
